bitfinex/quotes_BTCUSD_20240815
["timestamp","ask_amount","ask_price","bid_price","bid_amount"]
[1723743566308,0.336062,59513.0,59499.0,0.336135]
[1723743566540,0.336062,59513.0,59497.0,0.083]
[1723743566541,0.336061,59513.0,59505.0,0.336102]
[1723743566745,0.336061,59513.0,59506.0,0.00228236]
[1723743566746,0.168042,59509.0,59506.0,0.00228236]
[1723743566926,0.168042,59509.0,59504.0,0.336108]
[1723743567120,0.168042,59509.0,59505.0,0.0022883]
[1723743567321,0.168042,59509.0,59505.0,0.1703403]
[1723743567738,0.168042,59509.0,59505.0,0.1713403]
[1723743567950,0.168045,59508.0,59505.0,0.0032883]
[1723743568267,0.168045,59508.0,59505.0,0.0022883]
[1723743568625,0.168045,59508.0,59505.0,0.1703413]
[1723743568823,0.50759854,59516.0,59505.0,0.0022883]
[1723743568824,0.17155454,59516.0,59505.0,0.0022883]
[1723743569029,0.1,59523.0,59505.0,0.0022883]
[1723743569237,0.1,59523.0,59493.0,0.336172]
[1723743569238,0.336019,59521.0,59501.0,0.336127]
[1723743569438,0.168013,59519.0,59508.0,0.336087]
[1723743569666,0.168014,59519.0,59515.0,0.168024]
[1723743570025,0.168009,59521.0,59516.0,0.17024497]
[1723743570144,0.083,59523.0,59516.0,0.17024497]
[1723743570359,0.0636,59522.0,59516.0,0.33826697]
[1723743570585,0.0636,59522.0,59519.0,0.168012]
[1723743570778,0.0636,59522.0,59520.0,0.00219921]
[1723743570979,0.0636,59522.0,59521.0,0.168007]
[1723743571186,0.0636,59522.0,59520.0,0.00219921]
[1723743571187,0.000826,59524.0,59523.0,0.504006]
[1723743571391,0.000826,59524.0,59523.0,0.5061874]
[1723743571829,0.000826,59524.0,59523.0,0.8421914]
[1723743572038,0.000826,59524.0,59523.0,0.5061874]
[1723743572241,0.000826,59524.0,59523.0,0.0021814]
[1723743572242,0.584223,59524.0,59523.0,0.0021814]
[1723743572658,0.248225,59524.0,59523.0,0.0021814]
[1723743573091,0.080226,59524.0,59522.0,0.168003]
[1723743573321,0.000826,59524.0,59523.0,0.5061874]
[1723743574390,0.000826,59524.0,59523.0,0.1701834]
[1723743576107,0.000826,59524.0,59523.0,0.0031814]
[1723743576319,0.168825,59524.0,59523.0,0.0031814]
[1723743576843,0.504823,59524.0,59523.0,0.0031814]
[1723743577250,0.504823,59524.0,59523.0,0.001]
[1723743577745,0.840821,59524.0,59523.0,0.001]
[1723743577952,1.42917354,59524.0,59523.0,0.001]
[1723743578151,1.72915552,59524.0,59523.0,0.001]
[1723743578358,2.06515352,59524.0,59523.0,0.001]
[1723743578565,2.09377012,59524.0,59523.0,0.001]
[1723743578966,0.099,59521.0,59502.0,0.7985]
[1723743579141,0.08577727,59514.0,59510.0,0.51466362]
[1723743579341,0.08577727,59514.0,59509.0,0.00226454]
[1723743579342,0.504115,59510.0,59509.0,0.00226454]
[1723743579584,0.0754,59508.0,59498.0,0.336144]
[1723743579790,0.0754,59508.0,59499.0,0.336139]
[1723743579991,0.16805,59506.0,59502.0,0.16806]
[1723743580216,0.168053,59505.0,59502.0,0.19806]
[1723743580428,0.336094,59507.0,59502.0,0.19806]
[1723743580429,0.168056,59504.0,59502.0,0.03]
[1723743580656,0.336097,59507.0,59502.0,0.19806]
[1723743580858,0.168051,59506.0,59502.0,0.19806]
[1723743581472,0.168051,59506.0,59502.0,0.20206]
[1723743581720,0.336097,59507.0,59503.0,0.168057]
[1723743581721,0.168048,59507.0,59503.0,0.168057]
[1723743581927,0.0601,59509.0,59504.0,0.336107]
[1723743582146,0.0625,59520.0,59505.0,0.19455454]
[1723743582541,0.0625,59520.0,59515.0,0.336048]
[1723743582742,0.230511,59520.0,59515.0,0.336048]
[1723743582958,0.0625,59520.0,59517.0,0.168018]
[1723743583574,0.0645,59520.0,59517.0,0.168018]
[1723743583979,0.0625,59520.0,59517.0,0.168018]
[1723743584168,0.0625,59520.0,59517.0,0.169018]
[1723743584373,0.0645,59520.0,59517.0,0.169018]
[1723743584963,0.168016,59518.0,59517.0,0.002]
[1723743585169,0.504048,59518.0,59517.0,0.002]
[1723743585598,0.84008,59518.0,59517.0,0.002]
[1723743585808,1.255312,59518.0,59517.0,0.002]
[1723743586014,0.91928,59518.0,59517.0,0.002]
[1723743586218,0.91928,59518.0,59517.0,0.001]
[1723743586621,0.92028,59518.0,59517.0,0.001]
[1723743586854,0.336051,59515.0,59510.0,0.168038]
[1723743587265,0.16803,59513.0,59511.0,0.00039587]
[1723743587467,0.336051,59515.0,59511.0,0.00039587]
[1723743587468,0.168033,59512.0,59511.0,0.00039587]
[1723743587668,0.336055,59514.0,59511.0,0.00039587]
[1723743587954,0.336051,59515.0,59510.0,0.168037]
[1723743587955,0.168032,59513.0,59510.0,0.168037]
[1723743588158,0.168032,59513.0,59511.0,0.00039587]
[1723743589709,0.168028,59514.0,59511.0,0.00039587]
[1723743590267,0.168028,59514.0,59511.0,0.16843187]
[1723743590515,0.001,59514.0,59512.0,0.168031]
[1723743590718,0.001,59514.0,59511.0,0.00039587]
[1723743590893,0.001,59514.0,59513.0,0.16841399]
[1723743591097,0.001,59514.0,59513.0,0.16803]
[1723743591338,0.001,59514.0,59513.0,0.16841399]
[1723743592121,0.001,59514.0,59513.0,0.00038399]
[1723743592484,0.169027,59514.0,59513.0,0.00038399]
[1723743592624,0.001,59514.0,59513.0,0.00038399]
[1723743592827,0.336042,59517.0,59510.0,0.0009075]
[1723743593088,0.168026,59515.0,59513.0,0.00038399]
[1723743593302,0.001,59514.0,59511.0,0.168035]
[1723743593489,0.169028,59514.0,59511.0,0.168035]
[1723743593621,0.001,59514.0,59511.0,0.168035]
[1723743593826,0.168027,59515.0,59511.0,0.168035]
[1723743594033,0.168028,59514.0,59511.0,0.168035]
[1723743594432,0.08577727,59515.0,59510.0,0.0009075]
[1723743594637,0.168033,59512.0,59510.0,0.0009075]
[1723743595089,0.168031,59513.0,59510.0,0.0009075]
[1723743595697,0.169028,59514.0,59510.0,0.1689445]
[1723743595957,0.001,59514.0,59510.0,0.1689445]
[1723743596464,0.336044,59516.0,59510.0,0.1689445]
[1723743596465,0.168031,59513.0,59510.0,0.1689445]
[1723743596578,0.49959227,59522.0,59510.0,0.1689445]
[1723743596579,0.398525,59520.0,59510.0,0.0029075]
[1723743596779,0.16802,59517.0,59513.0,0.168029]
[1723743597213,0.001,59514.0,59513.0,0.168029]
[1723743597416,0.16802,59517.0,59513.0,0.168029]
[1723743597701,0.16802,59517.0,59514.0,0.168026]
[1723743598131,0.0635,59520.0,59511.0,0.076]
[1723743598347,0.0635,59520.0,59516.0,0.16802]
[1723743598348,0.169011,59520.0,59516.0,0.16802]
[1723743598572,0.169011,59520.0,59517.0,0.168019]
[1723743599106,0.169011,59520.0,59515.0,0.336046]
[1723743599107,0.001,59520.0,59518.0,0.168015]
[1723743599316,0.16901,59520.0,59517.0,0.168018]
[1723743599786,0.16801,59520.0,59517.0,0.168018]
[1723743599990,0.267008,59521.0,59517.0,0.168018]
[1723743600216,0.169011,59520.0,59517.0,0.168018]
[1723743600416,0.001,59520.0,59519.0,0.168013]
[1723743600996,0.001,59520.0,59519.0,0.840067]
[1723743601203,0.001,59520.0,59514.0,0.336052]
[1723743601204,0.001,59520.0,59518.0,0.168015]
[1723743601381,0.001,59520.0,59512.0,0.04999473]
[1723743601382,0.0615,59514.0,59512.0,0.04999473]
[1723743601580,0.0615,59514.0,59511.0,0.0749921]
[1723743601581,0.168031,59513.0,59511.0,0.04999473]
[1723743601791,0.168031,59513.0,59510.0,0.1689445]
[1723743601792,0.168032,59513.0,59510.0,0.21894023]
[1723743601991,0.0615,59514.0,59510.0,0.21893823]
[1723743602194,0.0615,59514.0,59510.0,0.0009075]
[1723743602430,0.168036,59511.0,59510.0,0.0009075]
[1723743602837,0.0615,59514.0,59510.0,0.3369825]
[1723743603035,0.397557,59514.0,59510.0,0.0009075]
[1723743603208,0.168031,59513.0,59510.0,0.05090223]
[1723743603409,0.168031,59513.0,59510.0,0.0009075]
[1723743603590,0.168031,59513.0,59510.0,0.0109075]
[1723743603790,0.168031,59513.0,59510.0,0.0009075]
[1723743603995,0.0615,59514.0,59510.0,0.0009075]
[1723743603996,0.168033,59512.0,59510.0,0.0009075]
[1723743604200,0.168033,59512.0,59510.0,0.0069075]
[1723743604418,0.336061,59513.0,59510.0,0.05090223]
[1723743604643,0.168036,59511.0,59510.0,0.0069075]
[1723743604843,0.336061,59513.0,59510.0,0.0069075]
[1723743605101,0.168034,59512.0,59510.0,0.0009075]
[1723743605503,0.0615,59514.0,59510.0,0.0089075]
[1723743605713,0.0615,59514.0,59511.0,0.168033]
[1723743605917,0.229528,59514.0,59511.0,0.168033]
[1723743606122,0.0615,59514.0,59511.0,0.168033]
[1723743606323,0.0615,59514.0,59511.0,0.198033]
[1723743606514,0.0615,59514.0,59512.0,0.168032]
[1723743607027,0.0615,59514.0,59511.0,0.198035]
[1723743607242,0.01074757,59523.0,59512.0,0.1411]
[1723743607243,0.099,59521.0,59512.0,0.1411]
[1723743607433,0.099,59521.0,59520.0,0.921152]
[1723743607641,0.099,59521.0,59520.0,1.29373214]
[1723743607785,0.099,59521.0,59520.0,1.39434776]
[1723743608410,0.099,59521.0,59520.0,1.29366261]
[1723743608683,0.099,59521.0,59520.0,1.3942679]
[1723743608963,0.099,59521.0,59520.0,0.504031]
[1723743609285,0.099,59521.0,59520.0,0.55433711]
[1723743609404,0.099,59521.0,59520.0,0.504031]
[1723743609598,0.099,59521.0,59520.0,0.91601732]
[1723743609805,0.099,59521.0,59520.0,0.55485413]
[1723743610034,0.099,59521.0,59520.0,0.8850746]
[1723743610231,0.099,59521.0,59520.0,0.51254235]
[1723743610432,0.099,59521.0,59520.0,0.58800812]
[1723743610682,0.099,59521.0,59520.0,1.29655185]
[1723743610816,0.099,59521.0,59520.0,1.32169137]
[1723743611011,0.099,59521.0,59520.0,1.29655984]
[1723743611462,0.099,59521.0,59520.0,0.58801611]
[1723743611696,0.099,59521.0,59520.0,0.96053823]
[1723743611939,0.099,59521.0,59520.0,0.88506447]
[1723743612132,0.099,59521.0,59520.0,0.54904347]
[1723743612326,0.099,59521.0,59520.0,0.62451146]
[1723743612566,0.408807,59521.0,59520.0,0.00851135]
[1723743612765,1.27925674,59521.0,59520.0,0.00851135]
[1723743612893,1.70434152,59521.0,59520.0,0.00851135]
[1723743613261,1.70434152,59521.0,59520.0,0.008]
[1723743613398,1.70434152,59521.0,59520.0,0.004]
[1723743613399,1.36832652,59521.0,59520.0,0.004]
[1723743613601,1.36832597,59521.0,59520.0,0.004]
[1723743613802,1.36832597,59521.0,59520.0,0.001]
[1723743614030,1.36832767,59521.0,59520.0,0.001]
[1723743614203,0.168019,59517.0,59512.0,0.05031193]
[1723743614410,0.168019,59517.0,59513.0,0.00055292]
[1723743614613,0.231227,59514.0,59513.0,0.00055292]
[1723743614798,0.312727,59514.0,59513.0,0.00055292]
[1723743615198,0.168033,59512.0,59511.0,0.05031193]
[1723743615426,0.168033,59512.0,59511.0,0.0005648]
[1723743615627,0.015935,59512.0,59511.0,0.0005648]
[1723743615827,0.015935,59513.0,59511.0,0.1686008]
[1723743616030,0.48428254,59514.0,59511.0,0.0005648]
[1723743616237,0.48428254,59514.0,59513.0,0.006]
[1723743616431,0.168031,59513.0,59511.0,0.0005648]
[1723743616636,0.31625454,59514.0,59513.0,0.00055292]
[1723743616876,0.0632,59514.0,59513.0,0.504091]
[1723743617063,0.0632,59514.0,59513.0,0.84070492]
[1723743617266,0.0634,59519.0,59518.0,0.504048]
[1723743617670,0.0634,59519.0,59518.0,0.50457122]
[1723743617875,0.099,59521.0,59520.0,0.16801]
[1723743618121,0.099,59521.0,59520.0,0.840052]
[1723743618340,0.099,59521.0,59520.0,0.84056335]
[1723743618554,0.099,59521.0,59520.0,1.17658435]
[1723743618967,0.099,59521.0,59520.0,0.84056335]
[1723743619797,0.099,59521.0,59520.0,0.16852135]
[1723743620150,0.11493699,59521.0,59520.0,0.16852135]
[1723743620352,0.19403699,59521.0,59520.0,0.00151135]
[1723743620725,0.19403699,59521.0,59520.0,0.00251135]
[1723743620929,0.36204399,59521.0,59520.0,0.00251135]
[1723743621339,1.38794576,59521.0,59520.0,0.00251135]
[1723743621567,1.47200877,59521.0,59520.0,0.001]
[1723743621881,1.06202132,59521.0,59520.0,0.001]
[1723743622137,1.03341225,59521.0,59520.0,0.001]
[1723743622511,1.03341225,59521.0,59517.0,0.168018]
[1723743622512,0.168011,59520.0,59517.0,0.168018]
[1723743622675,0.18394971,59519.0,59514.0,0.336052]
[1723743622871,0.01593571,59518.0,59515.0,0.168023]
[1723743623659,0.18395271,59518.0,59514.0,0.168026]
[1723743623861,0.18395271,59518.0,59514.0,0.21835674]
[1723743623862,0.168017,59518.0,59514.0,0.21835674]
[1723743624058,0.01593272,59517.0,59515.0,0.001]
[1723743624412,0.01593272,59517.0,59515.0,0.002]
[1723743624615,0.01593272,59517.0,59516.0,0.0005351]
[1723743624812,0.01593272,59517.0,59515.0,0.001]
[1723743625017,0.01593272,59517.0,59516.0,0.1685571]
[1723743625218,0.01593272,59517.0,59516.0,0.0005351]
[1723743625423,0.01593272,59517.0,59516.0,0.84011]
[1723743625602,0.2419,59521.0,59520.0,0.16801]
[1723743625822,0.42938663,59521.0,59520.0,0.16852135]
[1723743626237,0.11493209,59521.0,59520.0,0.84056335]
[1723743626438,0.11493209,59521.0,59520.0,0.92126335]
[1723743626837,0.11493209,59521.0,59520.0,0.93102987]
[1723743627090,0.11693209,59521.0,59520.0,1.60307187]
[1723743627295,0.000825,59523.0,59520.0,1.60307187]
[1723743627296,0.000825,59523.0,59522.0,0.840025]
[1723743627509,0.000825,59523.0,59522.0,1.96579576]
[1723743627708,0.000825,59523.0,59522.0,1.97555099]
[1723743628442,0.000825,59523.0,59522.0,2.10135664]
[1723743628791,0.000825,59523.0,59522.0,1.97555099]
[1723743628994,0.000825,59523.0,59522.0,2.12335545]
[1723743629203,0.000825,59523.0,59522.0,2.16910553]
[1723743629757,0.000825,59523.0,59522.0,2.16901043]
[1723743631259,0.00057083,59523.0,59522.0,2.16901043]
[1723743632069,0.00057083,59523.0,59522.0,3.10243043]
[1723743632297,0.00057083,59523.0,59522.0,3.23814043]
[1723743633417,0.000826,59524.0,59523.0,2.219736]
[1723743633620,0.000826,59524.0,59523.0,3.04329578]
[1723743634004,0.000825,59535.0,59534.0,1.952281]
[1723743634213,0.000825,59535.0,59534.0,3.11774925]
[1723743634408,0.000825,59535.0,59534.0,3.14274925]
[1723743634642,0.000825,59535.0,59534.0,3.14074925]
[1723743634868,0.000825,59535.0,59534.0,3.14274925]
[1723743635070,0.000825,59535.0,59534.0,3.20010671]
[1723743635276,0.000825,59535.0,59534.0,3.21410671]
[1723743635476,0.000825,59535.0,59534.0,3.15674925]
[1723743636892,0.000825,59535.0,59534.0,3.21410671]
[1723743637101,0.000825,59535.0,59534.0,3.22810671]
[1723743637298,0.000825,59535.0,59534.0,3.37874466]
[1723743637505,0.000825,59535.0,59534.0,3.17074925]
[1723743637751,0.000825,59535.0,59534.0,2.84282649]
[1723743638409,0.000825,59535.0,59534.0,2.8427662]
[1723743638686,0.000825,59535.0,59534.0,2.5068242]
[1723743639106,0.000825,59535.0,59534.0,2.3079242]
[1723743639310,0.000825,59535.0,59534.0,1.67392766]
[1723743639514,0.000825,59535.0,59534.0,1.30160374]
[1723743639745,0.000825,59535.0,59534.0,1.30220699]
[1723743640161,0.000825,59535.0,59534.0,1.80970353]
[1723743640770,0.000825,59535.0,59534.0,1.79968429]
[1723743641622,0.000825,59535.0,59534.0,1.21408775]
[1723743642141,0.000825,59535.0,59534.0,0.54220375]
[1723743642412,0.000825,59535.0,59534.0,0.03829075]
[1723743642609,0.244693,59535.0,59534.0,0.03829075]
[1723743642715,0.076725,59535.0,59534.0,0.03829075]
[1723743642921,0.244693,59535.0,59534.0,0.03829075]
[1723743643126,0.000825,59535.0,59534.0,0.87814575]
[1723743643324,0.000825,59535.0,59534.0,0.86414575]
[1723743643629,0.000825,59535.0,59534.0,0.86114575]
[1723743643881,0.000825,59535.0,59534.0,0.87214575]
[1723743644085,0.000825,59535.0,59534.0,0.20026175]
[1723743644258,0.000825,59535.0,59534.0,0.52520375]
[1723743644459,0.000825,59535.0,59534.0,0.86114575]
[1723743644678,0.000825,59535.0,59534.0,0.87214575]
[1723743644857,0.000825,59535.0,59534.0,1.20808775]
[1723743647450,0.000825,59535.0,59534.0,0.87214575]
[1723743648127,0.000825,59535.0,59534.0,0.03229075]
[1723743648336,0.000825,59535.0,59534.0,0.20026175]
[1723743649198,0.000825,59535.0,59534.0,0.03229075]
[1723743649406,0.248593,59535.0,59534.0,0.03229075]
[1723743649840,0.248593,59535.0,59534.0,0.022]
[1723743650064,0.584529,59535.0,59534.0,0.03229075]
[1723743650273,0.080625,59535.0,59534.0,0.03229075]
[1723743650488,0.248593,59535.0,59534.0,0.03229075]
[1723743650696,0.080625,59535.0,59534.0,0.03229075]
[1723743650902,0.080625,59535.0,59534.0,0.189971]
[1723743651109,0.000825,59535.0,59534.0,0.87214575]
[1723743651315,0.000825,59535.0,59534.0,0.53620375]
[1723743652363,0.000825,59535.0,59534.0,0.87214575]
[1723743652599,0.000825,59535.0,59534.0,1.20808775]
[1723743657271,0.000825,59535.0,59534.0,1.20783455]
[1723743660144,0.000825,59535.0,59534.0,1.40238909]
[1723743660702,0.000825,59535.0,59534.0,0.87189255]
[1723743661112,0.000825,59535.0,59534.0,1.20783455]
[1723743661562,0.063825,59535.0,59534.0,0.53595055]
[1723743661768,0.063825,59535.0,59534.0,0.20000855]
[1723743661998,0.231793,59535.0,59534.0,0.03203755]
[1723743662465,0.567729,59535.0,59534.0,0.03203755]
[1723743662644,0.063825,59535.0,59534.0,0.03203755]
[1723743663434,0.231793,59535.0,59534.0,0.03203755]
[1723743666444,0.063825,59535.0,59534.0,0.03203755]
[1723743666649,0.063825,59535.0,59534.0,0.53595055]
[1723743666857,0.000825,59535.0,59534.0,1.20783455]
[1723743667262,0.000825,59535.0,59534.0,1.37938909]
[1723743669216,0.000825,59535.0,59534.0,1.42952861]
[1723743669418,0.000825,59535.0,59534.0,1.37938909]
[1723743670373,0.000825,59535.0,59534.0,1.82700146]
[1723743670552,0.000825,59535.0,59534.0,1.82200146]
[1723743670958,0.000825,59535.0,59534.0,2.08273418]
[1723743671388,0.000825,59535.0,59534.0,2.18301322]
[1723743671592,0.000825,59535.0,59534.0,2.18353418]
[1723743671593,1e-08,59535.0,59534.0,2.18353418]
[1723743671798,1e-08,59535.0,59534.0,2.33395274]
[1723743672000,1e-08,59535.0,59534.0,2.18353418]
[1723743672499,0.0002,59539.0,59538.0,1.511635]
[1723743672720,0.0002,59539.0,59538.0,2.05559263]
[1723743672891,0.0002,59539.0,59538.0,2.05591351]
[1723743673296,0.0002,59539.0,59538.0,1.71999451]
[1723743673837,0.0002,59539.0,59538.0,1.73399451]
[1723743674461,0.0002,59539.0,59538.0,2.24921351]
[1723743675180,0.0002,59539.0,59538.0,2.39999385]
[1723743675386,0.0002,59539.0,59538.0,2.41010698]
[1723743675595,0.0002,59539.0,59538.0,2.41003467]
[1723743675821,0.0002,59539.0,59538.0,2.25926329]
[1723743677619,0.0002,59539.0,59538.0,2.35926329]
[1723743678242,0.001027,59539.0,59538.0,2.35926329]
[1723743679847,0.001027,59539.0,59538.0,2.3592496]
[1723743681277,0.001027,59539.0,59538.0,2.3452496]
[1723743681885,0.001027,59539.0,59538.0,2.3312496]
[1723743682095,0.001027,59539.0,59538.0,2.3452496]
[1723743682439,0.001027,59539.0,59538.0,2.49595579]
[1723743682870,0.001027,59539.0,59538.0,2.50995579]
[1723743683075,0.001027,59539.0,59538.0,3.02177479]
[1723743683277,0.0831,59556.0,59538.0,3.02177479]
[1723743683278,0.0612,59554.0,59553.0,0.167917]
[1723743683458,0.0612,59554.0,59553.0,0.55398444]
[1723743683657,0.0612,59554.0,59553.0,0.89005133]
[1723743684194,0.0612,59554.0,59553.0,0.89005041]
[1723743685244,0.0612,59554.0,59553.0,1.2258807]
[1723743685451,0.0612,59554.0,59553.0,0.8900457]
[1723743685668,0.0612,59554.0,59553.0,1.2258807]
[1723743685870,0.0612,59554.0,59553.0,0.8900457]
[1723743686071,0.0612,59554.0,59553.0,1.2258807]
[1723743686220,0.0612,59554.0,59553.0,1.17565389]
[1723743686444,0.0612,59554.0,59553.0,1.18465389]
[1723743687150,0.0612,59554.0,59553.0,1.2348807]
[1723743687533,0.0612,59554.0,59553.0,1.18465389]
[1723743688025,0.0612,59554.0,59553.0,0.84881889]
[1723743688425,0.0612,59554.0,59553.0,1.18465389]
[1723743688628,0.0612,59554.0,59553.0,0.84881889]
[1723743691175,0.062026,59554.0,59553.0,0.84881889]
[1723743691576,0.647769,59554.0,59553.0,0.00923189]
[1723743691790,1.15515254,59554.0,59553.0,0.009]
[1723743692333,0.167926,59550.0,59546.0,0.167936]
[1723743692532,0.335844,59552.0,59546.0,0.167936]
[1723743692533,0.0664,59549.0,59546.0,0.167936]
[1723743692748,0.0664,59549.0,59547.0,0.167933]
[1723743693155,0.0664,59549.0,59546.0,0.167937]
[1723743693528,0.234329,59549.0,59546.0,0.167937]
[1723743693879,0.0664,59549.0,59548.0,0.167931]
[1723743694075,0.0664,59549.0,59548.0,0.503794]
[1723743694820,0.0664,59549.0,59548.0,0.167931]
[1723743695453,0.0664,59549.0,59548.0,0.17831541]
[1723743695661,0.316028,59549.0,59548.0,0.01038441]
[1723743695887,0.316028,59549.0,59543.0,0.167944]
[1723743695888,0.167934,59547.0,59543.0,0.167944]
[1723743696087,0.1437,59546.0,59544.0,0.17834897]
[1723743696355,0.062,59545.0,59544.0,0.17834897]
[1723743696931,0.062,59545.0,59544.0,0.01040697]
[1723743697120,1.30478131,59545.0,59544.0,0.01040697]
[1723743697301,1.30478131,59545.0,59535.0,0.0009086]
[1723743697302,0.0616,59541.0,59535.0,0.0009086]
[1723743697499,0.0616,59541.0,59540.0,0.503862]
[1723743697733,0.0616,59541.0,59540.0,0.167954]
[1723743697877,0.0616,59541.0,59540.0,0.17838354]
[1723743698479,0.0616,59541.0,59540.0,0.01042954]
[1723743698725,0.0616,59541.0,59540.0,0.503862]
[1723743698925,0.0616,59541.0,59540.0,0.85019954]
[1723743699377,0.0623,59548.0,59540.0,0.18198408]
[1723743699580,0.0623,59548.0,59547.0,0.167934]
[1723743699831,0.0623,59548.0,59547.0,0.839672]
[1723743700004,0.0623,59548.0,59547.0,0.8398484]
[1723743700207,0.0623,59548.0,59547.0,0.5039794]
[1723743702377,0.0623,59548.0,59547.0,0.5069794]
[1723743702583,0.0623,59548.0,59547.0,0.51936945]
[1723743704897,0.0623,59548.0,59547.0,0.18350045]
[1723743705361,0.230231,59548.0,59547.0,0.01556645]
[1723743705574,0.308931,59548.0,59547.0,0.01556645]
[1723743706276,0.644794,59548.0,59547.0,0.01056645]
[1723743706482,0.141,59548.0,59547.0,0.01056645]
[1723743706682,0.308931,59548.0,59547.0,0.01056645]
[1723743708006,0.141,59548.0,59547.0,0.01056645]
[1723743708445,0.308931,59548.0,59547.0,0.01056645]
[1723743711921,1.175559,59546.0,59542.0,0.07538046]
[1723743712146,1.175559,59546.0,59535.0,0.0009086]
[1723743712147,0.503862,59540.0,59539.0,0.0009086]
[1723743712401,1.83967906,59540.0,59539.0,0.0009086]
[1723743712685,1.61442453,59540.0,59539.0,0.0009086]
[1723743712926,2.14442453,59540.0,59539.0,0.0009086]
[1723743713125,1.71442453,59540.0,59539.0,0.0009086]
[1723743713535,1.71442453,59540.0,59535.0,0.0009086]
[1723743713536,1.315558,59536.0,59535.0,0.0009086]
[1723743713734,1.60305106,59536.0,59535.0,0.0009086]
[1723743714414,0.15573852,59536.0,59535.0,0.0009086]
[1723743714605,0.307765,59536.0,59535.0,0.0009086]
[1723743714777,0.1398,59536.0,59535.0,0.0009086]
[1723743715302,0.307765,59536.0,59535.0,0.00199264]
[1723743715523,0.643696,59536.0,59535.0,0.00199264]
[1723743715738,1.28273464,59536.0,59535.0,0.00199264]
[1723743715926,1.48711254,59536.0,59535.0,0.00199264]
[1723743716102,1.48711254,59536.0,59535.0,0.0009086]
[1723743716303,1.48911254,59536.0,59535.0,0.0019086]
[1723743716666,1.5030513,59536.0,59535.0,0.0009086]
[1723743716871,1.57806367,59536.0,59535.0,0.0029086]
[1723743717068,1.5070513,59536.0,59535.0,0.0029086]
[1723743717320,1.49111254,59536.0,59535.0,0.0029086]
[1723743717526,1.48911254,59536.0,59535.0,0.0019086]
[1723743717899,1.48911254,59536.0,59535.0,0.0029086]
[1723743718141,1.49111254,59536.0,59535.0,0.0029086]
[1723743719128,1.48911254,59536.0,59535.0,0.0019086]
[1723743719332,1.48911254,59536.0,59535.0,0.0009086]
[1723743719333,1.48711254,59536.0,59535.0,0.0009086]
[1723743719565,1.50404919,59536.0,59535.0,0.0029086]
[1723743719756,1.50504919,59536.0,59535.0,0.0029086]
[1723743719961,1.50304919,59536.0,59535.0,0.0009086]
[1723743720250,1.48811254,59536.0,59535.0,0.0019086]
[1723743720863,1.48911254,59536.0,59535.0,0.0029086]
[1723743721325,1.50504654,59536.0,59535.0,0.0029086]
[1723743721752,1.50504653,59536.0,59535.0,0.0029086]
[1723743725541,1.50504227,59536.0,59535.0,0.0029086]
[1723743725743,1.48911254,59536.0,59535.0,0.0029086]
[1723743726185,1.50503971,59536.0,59535.0,0.0029086]
[1723743727174,1.48911254,59536.0,59535.0,0.0029086]
[1723743727902,1.58429248,59536.0,59535.0,0.0029086]
[1723743729118,1.48911254,59536.0,59535.0,0.0029086]
[1723743730541,1.48911254,59536.0,59535.0,0.1708766]
[1723743730542,0.002,59536.0,59535.0,0.1708766]
[1723743730744,0.002,59536.0,59535.0,0.0029086]
[1723743730922,0.002,59536.0,59535.0,0.00399264]
[1723743731143,0.001,59536.0,59535.0,0.00299264]
[1723743731339,0.001,59536.0,59535.0,0.17096064]
[1723743731544,0.002,59536.0,59535.0,0.00399264]
[1723743731748,0.002,59536.0,59535.0,0.17196064]
[1723743732800,0.001,59536.0,59535.0,0.17096064]
[1723743733006,0.002,59536.0,59535.0,0.17096064]
[1723743733152,0.001,59536.0,59535.0,0.16996064]
[1723743733351,0.001,59536.0,59535.0,0.00299264]
[1723743733590,0.002,59536.0,59535.0,0.50689664]
[1723743733790,0.002,59536.0,59535.0,0.50589664]
[1723743734009,0.001,59536.0,59535.0,0.84183264]
[1723743734217,0.002,59536.0,59535.0,1.15548718]
[1723743734465,0.002,59536.0,59535.0,1.49142318]
[1723743734466,0.001,59536.0,59535.0,1.49142318]
[1723743734667,0.000826,59539.0,59538.0,0.839797]
[1723743734868,0.000826,59539.0,59538.0,1.175716]
[1723743735071,0.000826,59539.0,59538.0,1.17678224]
[1723743736674,0.000826,59539.0,59538.0,1.18378224]
[1723743737141,0.000826,59539.0,59538.0,1.19078224]
[1723743738082,0.000826,59539.0,59538.0,1.44383678]
[1723743739699,0.000826,59539.0,59538.0,1.27228224]
[1723743742608,0.000826,59539.0,59538.0,1.77975578]
[1723743742811,0.000826,59539.0,59538.0,1.89627988]
[1723743743009,0.000826,59548.0,59538.0,1.89627988]
[1723743743010,0.000826,59548.0,59547.0,0.839672]
[1723743743243,0.000826,59548.0,59547.0,0.920572]
[1723743743444,0.000826,59548.0,59547.0,0.24984684]
[1723743743649,0.000826,59548.0,59547.0,0.16894684]
[1723743743855,0.000826,59548.0,59547.0,0.50481584]
[1723743745063,0.000826,59548.0,59547.0,0.84068484]
[1723743746660,0.000826,59548.0,59547.0,0.84468484]
[1723743747098,0.000826,59548.0,59547.0,1.23895384]
[1723743747340,0.000826,59548.0,59547.0,1.31675384]
[1723743747556,0.000826,59548.0,59547.0,1.32475384]
[1723743748923,0.000826,59548.0,59547.0,1.25435384]
[1723743749295,0.000826,59548.0,59547.0,1.25835384]
[1723743749420,0.000826,59548.0,59547.0,1.18855384]
[1723743749810,0.000826,59548.0,59547.0,1.18455384]
[1723743750122,0.000826,59548.0,59547.0,1.19255384]
[1723743752233,0.000826,59548.0,59547.0,1.33245384]
[1723743752848,0.000826,59548.0,59547.0,1.31645384]
[1723743753142,0.000826,59548.0,59547.0,1.32845384]
[1723743753381,0.000826,59548.0,59547.0,1.33945384]
[1723743754706,0.000826,59548.0,59547.0,1.84687738]
[1723743755085,0.000826,59548.0,59547.0,1.85710736]
[1723743755293,0.000826,59548.0,59547.0,1.90729626]
[1723743755526,0.000826,59548.0,59547.0,2.22940528]